fUST/lending_fUST_20250819
["ID","MTS","AMOUNT","RATE_DAILY","PERIOD"]
[380144757,1755573062778,-3000.0,0.0002122,2]
[380144758,1755573062787,-151.0,0.0002122,2]
[380144759,1755573062796,-334.185117,0.0002122,2]
[380144760,1755573062805,-334.185117,0.0002122,2]
[380144761,1755573062814,-151.0,0.0002122,2]
[380144762,1755573062823,-3000.0,0.0002123,2]
[380144763,1755573062832,-3000.0,0.0002124,2]
[380144764,1755573062842,-3000.0,0.0002125,2]
[380144765,1755573062851,-242.0,0.00021254,2]
[380144766,1755573062861,-3000.0,0.0002126,2]
[380144767,1755573062871,-359.906206,0.0002126,2]
[380144768,1755573062880,-359.906206,0.0002126,2]
[380144769,1755573062890,-151.0,0.0002126,2]
[380144770,1755573062900,-167.480784,0.0002126,2]
[380144771,1755573062910,-151.0,0.0002126,2]
[380144772,1755573062920,-167.480784,0.0002126,2]
[380144773,1755573062930,-242.0,0.00021262,2]
[380144774,1755573062940,-3000.0,0.0002127,2]
[380144775,1755573062951,-151.0,0.0002127,2]
[380144776,1755573062960,-151.0,0.0002127,2]
[380144777,1755573062970,-3000.0,0.0002128,2]
[380144778,1755573062979,-3000.0,0.0002129,2]
[380144779,1755573062988,-3569.859108,0.000213,2]
[380144780,1755573062997,-168.0,0.0002132,2]
[380144781,1755573063007,-151.0,0.00021338,2]
[380144782,1755573063016,-151.0,0.00021338,2]
[380144783,1755573063026,-458.534596,0.00021338,2]
[380144784,1755573063035,-151.0,0.00021338,2]
[380144785,1755573063045,-1059.201726,0.00021338,2]
[380144786,1755573063056,-455.408369,0.00021338,2]
[380144787,1755573063066,-1059.201726,0.00021338,2]
[380144788,1755573063076,-458.534596,0.00021338,2]
[380144789,1755573063085,-455.408369,0.00021338,2]
[380144790,1755573063095,-151.0,0.00021338,2]
[380144791,1755573063104,-151.0,0.00021338,2]
[380144792,1755573063114,-151.0,0.00021338,2]
[380144793,1755573063124,-151.0,0.00021338,2]
[380144794,1755573063133,-160.132128,0.00021338,2]
[380144795,1755573063143,-151.0,0.00021338,2]
[380144796,1755573063153,-480.0,0.00021369,2]
[380144797,1755573063163,-490.72265269,0.00021369,2]
[380144798,1755573063173,-430.98877493,0.00021369,2]
[380144799,1755573063182,-480.0,0.00021369,2]
[380144800,1755573063192,-6716.15,0.00021369,2]
[380144801,1755573063205,-534.48,0.00021369,2]
[380144802,1755573063214,-1628.01,0.00021369,2]
[380144803,1755573063224,-164.930769,0.00021369,2]
[380144804,1755573063234,-164.930769,0.00021369,2]
[380144805,1755573063243,-480.0,0.00021369,2]
[380144806,1755573063254,-517.72,0.00021369,2]
[380144807,1755573063263,-480.0,0.00021369,2]
[380144808,1755573063274,-480.0,0.00021369,2]
[380144809,1755573063284,-707.0,0.00021369,2]
[380144810,1755573063293,-151.0,0.00021369,2]
[380144811,1755573063303,-689.35,0.00021369,2]
[380144812,1755573063313,-480.0,0.00021369,2]
[380144813,1755573063323,-505.79302902,0.00021369,2]
[380144814,1755573063333,-469.79207474,0.00021369,2]
[380144815,1755573063344,-443.4571392,0.00021369,2]
[380144816,1755573063354,-2793.31,0.00021369,2]
[380144817,1755573063364,-480.0,0.00021369,2]
[380144818,1755573063378,-480.0,0.00021369,2]
[380144819,1755573063388,-719.59,0.00021369,2]
[380144820,1755573063397,-1120.53,0.00021369,2]
[380144821,1755573063407,-480.0,0.00021369,2]
[380144822,1755573063416,-562.43,0.00021369,2]
[380144823,1755573063427,-480.0,0.00021369,2]
[380144824,1755573063436,-407.03895557,0.00021369,2]
[380144825,1755573063447,-480.0,0.00021369,2]
[380144826,1755573063457,-480.0,0.00021369,2]
[380144827,1755573063467,-480.0,0.00021369,2]
[380144828,1755573063477,-480.0,0.00021369,2]
[380144829,1755573063487,-480.0,0.00021369,2]
[380144830,1755573063496,-836.35,0.00021369,2]
[380144831,1755573063505,-480.0,0.00021369,2]
[380144832,1755573063514,-480.0,0.00021369,2]
[380144833,1755573063524,-480.0,0.00021369,2]
[380144834,1755573063534,-2003.27,0.00021369,2]
[380144835,1755573063543,-509.81,0.00021369,2]
[380144836,1755573063553,-151.0,0.00021369,2]
[380144837,1755573063563,-480.0,0.00021369,2]
[380144838,1755573063573,-853.16,0.00021369,2]
[380144839,1755573063583,-480.0,0.00021369,2]
[380144840,1755573063592,-472.1916222,0.00021369,2]
[380144841,1755573063601,-480.0,0.00021369,2]
[380144842,1755573063610,-1633.9,0.00021369,2]
[380144843,1755573063619,-965.84,0.00021369,2]
[380144844,1755573063628,-519.79,0.00021369,2]
[380144845,1755573063636,-1023.57,0.00021369,2]
[380144846,1755573063646,-885.580542,0.00021369,2]
[380144847,1755573063655,-885.580542,0.00021369,2]
[380144848,1755573063664,-480.0,0.00021369,2]
[380144849,1755573063674,-480.0,0.00021369,2]
[380144850,1755573063684,-151.0,0.00021369,2]
[380144851,1755573063694,-335.358325,0.00021369,2]
[380144852,1755573063706,-277.10312,0.00021369,2]
[380144853,1755573063716,-593.14,0.00021369,2]
[380144854,1755573063726,-335.358325,0.00021369,2]
[380144855,1755573063736,-151.0,0.00021369,2]
[380144856,1755573063746,-663.13,0.00021369,2]
[380144857,1755573063756,-151.0,0.00021369,2]
[380144858,1755573063766,-503.68449628,0.00021369,2]
[380144859,1755573063776,-480.0,0.00021369,2]
[380144860,1755573063786,-151.0,0.00021369,2]
[380144861,1755573063795,-210.452597,0.00021369,2]
[380144862,1755573063805,-480.0,0.00021369,2]
[380144863,1755573063815,-675.11,0.00021369,2]
[380144864,1755573063825,-480.0,0.00021369,2]
[380144865,1755573063834,-210.452597,0.00021369,2]
[380144866,1755573063843,-651.9,0.00021369,2]
[380144867,1755573063853,-494.45,0.00021369,2]
[380144868,1755573063963,-960.93,0.00021369,2]
[380144869,1755573063975,-243.800387,0.00021369,2]
[380144870,1755573063985,-955.61,0.00021369,2]
[380144871,1755573063995,-2155.72,0.00021369,2]
[380144872,1755573064006,-927.52,0.00021369,2]
[380144873,1755573064017,-480.0,0.00021369,2]
[380144874,1755573064026,-1426.67,0.00021369,2]
[380144875,1755573064036,-480.0,0.00021369,2]
[380144876,1755573064046,-191.779854,0.00021369,2]
[380144877,1755573064055,-582.03,0.00021369,2]
[380144878,1755573064065,-976.54,0.00021369,2]
[380144879,1755573064074,-712.04,0.00021369,2]
[380144880,1755573064084,-653.79,0.00021369,2]
[380144881,1755573064094,-480.0,0.00021369,2]
[380144882,1755573064104,-1664.25,0.00021369,2]
[380144883,1755573064113,-532.395296,0.00021369,2]
[380144884,1755573064123,-5114.43,0.00021369,2]
[380144885,1755573064132,-532.395296,0.00021369,2]
[380144887,1755573064142,-1977.8,0.00021369,2]
[380144888,1755573064151,-1069.37,0.00021369,2]
[380144889,1755573064161,-1909.96,0.00021369,2]
[380144890,1755573064170,-3233.99,0.00021369,2]
[380144891,1755573064180,-494.65,0.00021369,2]
[380144892,1755573064189,-1626.15,0.00021369,2]
[380144893,1755573064199,-882.27,0.00021369,2]
[380144894,1755573064209,-540.86,0.00021369,2]
[380144895,1755573064219,-2411.02,0.00021369,2]
[380144896,1755573064229,-909.71,0.00021369,2]
[380144897,1755573064239,-480.0,0.00021369,2]
[380144898,1755573064248,-480.0,0.00021369,2]
[380144899,1755573064257,-559.74,0.00021369,2]
[380144900,1755573064266,-386.36722415,0.00021369,2]
[380144901,1755573064276,-480.0,0.00021369,2]
[380144902,1755573064287,-887.99,0.00021369,2]
[380144903,1755573064296,-399.58792229,0.00021369,2]
[380144904,1755573064305,-575.58,0.00021369,2]
[380144905,1755573064317,-1987.21,0.00021369,2]
[380144906,1755573064327,-6405.06,0.00021369,2]
[380144907,1755573064336,-860.52,0.00021369,2]
[380144908,1755573064346,-810.59,0.00021369,2]
[380144909,1755573064356,-728.69,0.00021369,2]
[380144910,1755573064365,-690.18,0.00021369,2]
[380144911,1755573064375,-1039.74,0.00021369,2]
[380144912,1755573064394,-480.0,0.00021369,2]
[380144913,1755573064404,-2436.12,0.00021369,2]
[380144914,1755573064415,-480.0,0.00021369,2]
[380144915,1755573064425,-941.31,0.00021369,2]
[380144916,1755573064434,-547.86,0.00021369,2]
[380144917,1755573064444,-653.19,0.00021369,2]
[380144918,1755573064455,-712.5,0.00021369,2]
[380144919,1755573064464,-2633.5,0.00021369,2]
[380144920,1755573064475,-3869.68,0.00021369,2]
[380144921,1755573064484,-480.0,0.00021369,2]
[380144922,1755573064493,-480.0,0.00021369,2]
[380144923,1755573064503,-491.22,0.00021369,2]
[380144924,1755573064513,-1131.68,0.00021369,2]
[380144925,1755573064523,-151.0,0.00021369,2]
[380144926,1755573064532,-461.0,0.0002137,2]
[380144927,1755573064542,-250.0,0.000214,2]
[380144928,1755573064552,-465.03,0.000215,2]
[380144929,1755573064561,-720.0,0.00021517,20]
[380144930,1755573064571,-260.0,0.00021548,2]
[380144931,1755573064580,-560.18484352,0.00021551,2]
[380144932,1755573064590,-1700.0,0.00021582,2]
[380144933,1755573064599,-168.0,0.00021587,2]
[380144934,1755573064608,-250.0,0.000216,2]
[380144935,1755573064617,-391.0,0.000216,2]
[380144936,1755573064626,-854.05442532,0.00021621,2]
[380144937,1755573064635,-501.93795944,0.00021621,2]
[380144938,1755573064646,-504.79103846,0.00021621,2]
[380144939,1755573064655,-1000.0,0.00021621,2]
[380144940,1755573064664,-1000.0,0.00021621,2]
[380144941,1755573064673,-1000.0,0.00021621,2]
[380144942,1755573064683,-501.74576475,0.00021621,2]
[380144943,1755573064692,-1000.0,0.00021621,2]
[380144944,1755573064703,-1001.08190959,0.00021621,2]
[380144945,1755573064715,-1001.35423179,0.00021621,2]
[380144946,1755573064724,-1000.0,0.00021621,2]
[380144947,1755573064733,-1000.0,0.00021621,2]
[380144948,1755573064742,-1000.0,0.00021621,2]
[380144949,1755573064752,-585.69703793,0.00021621,2]
[380144950,1755573064761,-716.70851571,0.00021621,2]
[380144951,1755573064771,-504.34719205,0.00021621,2]
[380144952,1755573064779,-1000.0,0.00021621,2]
[380144953,1755573064789,-1000.0,0.00021621,2]
[380144954,1755573064798,-500.46847642,0.00021621,2]
[380144955,1755573064806,-501.66205949,0.00021621,2]
[380144956,1755573064816,-1001.35727743,0.00021621,2]
[380144957,1755573064825,-501.83130831,0.00021621,2]
[380144958,1755573064834,-1000.0,0.00021621,2]
[380144959,1755573064843,-1001.06295074,0.00021621,2]
[380144960,1755573064852,-1000.0,0.00021621,2]
[380144961,1755573064861,-1000.0,0.00021621,2]
[380144962,1755573064871,-1000.0,0.00021621,2]
[380144963,1755573064890,-500.92870441,0.00021621,2]
[380144964,1755573064899,-908.60153196,0.00021621,2]
[380144965,1755573064908,-279.98607982,0.00021621,2]
[380144966,1755573064918,-207.12624511,0.00021621,2]
[380144967,1755573064928,-334.185117,0.00021621,2]
[380144968,1755573064937,-334.185117,0.00021621,2]
[380144969,1755573064947,-151.0,0.00021621,2]
[380144970,1755573064960,-359.906206,0.00021621,2]
[380144971,1755573064969,-359.906206,0.00021621,2]
[380144972,1755573064979,-184.139111,0.00021621,2]
[380144973,1755573064988,-167.480784,0.00021621,2]
[380144974,1755573064996,-151.0,0.00021621,2]
[380144975,1755573065006,-167.480784,0.00021621,2]
[380144976,1755573065015,-480.0,0.00021643,2]
[380144977,1755573065024,-480.0,0.00021643,2]
[380144978,1755573065033,-6716.15,0.00021643,2]
[380144979,1755573065044,-534.48,0.00021643,2]
[380144980,1755573065053,-1628.01,0.00021643,2]
[380144981,1755573065063,-164.930769,0.00021643,2]
[380144982,1755573065072,-164.930769,0.00021643,2]
[380144983,1755573065082,-480.0,0.00021643,2]
[380144984,1755573065091,-517.72,0.00021643,2]
[380144985,1755573065100,-480.0,0.00021643,2]
[380144986,1755573065110,-480.0,0.00021643,2]
[380144987,1755573065119,-707.0,0.00021643,2]
[380144988,1755573065129,-151.0,0.00021643,2]
[380144989,1755573065138,-689.35,0.00021643,2]
[380144990,1755573065148,-404.29411784,0.00021643,2]
[380144991,1755573065158,-151.0,0.00021643,2]
[380144992,1755573065169,-151.0,0.00021643,2]
[380144993,1755573065179,-2793.31,0.00021643,2]
[380144994,1755573065190,-480.0,0.00021643,2]
[380144995,1755573065204,-480.0,0.00021643,2]
[380144996,1755573065213,-719.59,0.00021643,2]
[380144997,1755573065222,-1120.53,0.00021643,2]
[380144998,1755573065231,-480.0,0.00021643,2]
[380144999,1755573065240,-562.43,0.00021643,2]
[380145000,1755573065249,-480.0,0.00021643,2]
[380145001,1755573065259,-480.0,0.00021643,2]
[380145002,1755573065269,-480.0,0.00021643,2]
[380145003,1755573065279,-480.0,0.00021643,2]
[380145004,1755573065288,-480.0,0.00021643,2]
[380145005,1755573065297,-480.0,0.00021643,2]
[380145006,1755573065306,-836.35,0.00021643,2]
[380145007,1755573065316,-480.0,0.00021643,2]
[380145008,1755573065325,-480.0,0.00021643,2]
[380145009,1755573065334,-480.0,0.00021643,2]
[380145010,1755573065343,-2003.27,0.00021643,2]
[380145011,1755573065352,-509.81,0.00021643,2]
[380145012,1755573065362,-151.0,0.00021643,2]
[380145013,1755573065372,-480.0,0.00021643,2]
[380145014,1755573065387,-853.16,0.00021643,2]
[380145015,1755573065396,-480.0,0.00021643,2]
[380145016,1755573065407,-480.0,0.00021643,2]
[380145017,1755573065417,-1633.9,0.00021643,2]
[380145018,1755573065427,-965.84,0.00021643,2]
[380145019,1755573065436,-519.79,0.00021643,2]
[380145020,1755573065446,-1023.57,0.00021643,2]
[380145021,1755573065458,-885.580542,0.00021643,2]
[380145022,1755573065467,-885.580542,0.00021643,2]
[380145023,1755573065476,-480.0,0.00021643,2]
[380145024,1755573065486,-480.0,0.00021643,2]
[380145025,1755573065495,-151.0,0.00021643,2]
[380145026,1755573065504,-335.358325,0.00021643,2]
[380145027,1755573065514,-151.0,0.00021643,2]
[380145028,1755573065523,-335.358325,0.00021643,2]
[380145029,1755573065532,-593.14,0.00021643,2]
[380145030,1755573065542,-663.13,0.00021643,2]
[380145031,1755573065551,-151.0,0.00021643,2]
[380145032,1755573065560,-480.0,0.00021643,2]
[380145033,1755573065569,-151.0,0.00021643,2]
[380145034,1755573065578,-480.0,0.00021643,2]
[380145035,1755573065588,-210.452597,0.00021643,2]
[380145036,1755573065597,-675.11,0.00021643,2]
[380145037,1755573065606,-480.0,0.00021643,2]
[380145038,1755573065615,-210.452597,0.00021643,2]
[380145039,1755573065624,-651.9,0.00021643,2]
[380145040,1755573065633,-494.45,0.00021643,2]
[380145041,1755573065642,-960.93,0.00021643,2]
[380145042,1755573065651,-955.61,0.00021643,2]
[380145043,1755573065659,-2155.72,0.00021643,2]
[380145044,1755573065669,-927.52,0.00021643,2]
[380145045,1755573065678,-480.0,0.00021643,2]
[380145046,1755573065687,-1426.67,0.00021643,2]
[380145047,1755573065696,-480.0,0.00021643,2]
[380145048,1755573065707,-582.03,0.00021643,2]
[380145049,1755573065716,-976.54,0.00021643,2]
[380145050,1755573065725,-712.04,0.00021643,2]
[380145051,1755573065734,-653.79,0.00021643,2]
[380145052,1755573065743,-480.0,0.00021643,2]
[380145053,1755573065752,-1664.25,0.00021643,2]
[380145054,1755573065761,-532.395296,0.00021643,2]
[380145055,1755573065770,-5114.43,0.00021643,2]
[380145056,1755573065779,-532.395296,0.00021643,2]
[380145057,1755573065787,-1977.8,0.00021643,2]
[380145058,1755573065796,-1069.37,0.00021643,2]
[380145059,1755573065805,-151.0,0.00021643,2]
[380145060,1755573065814,-1909.96,0.00021643,2]
[380145061,1755573065823,-3233.99,0.00021643,2]
[380145062,1755573065832,-494.65,0.00021643,2]
[380145063,1755573065841,-1626.15,0.00021643,2]
[380145064,1755573065850,-151.0,0.00021643,2]
[380145065,1755573065859,-882.27,0.00021643,2]
[380145066,1755573065868,-540.86,0.00021643,2]
[380145067,1755573065878,-2411.02,0.00021643,2]
[380145068,1755573065887,-909.71,0.00021643,2]
[380145069,1755573065896,-480.0,0.00021643,2]
[380145070,1755573065905,-480.0,0.00021643,2]
[380145071,1755573065914,-559.74,0.00021643,2]
[380145072,1755573065923,-480.0,0.00021643,2]
[380145073,1755573065933,-887.99,0.00021643,2]
[380145074,1755573065942,-575.58,0.00021643,2]
[380145075,1755573065951,-458.534596,0.00021643,2]
[380145076,1755573065964,-1987.21,0.00021643,2]
[380145077,1755573065973,-151.0,0.00021643,2]
[380145078,1755573065983,-1059.201726,0.00021643,2]
[380145079,1755573065992,-455.408369,0.00021643,2]
[380145080,1755573066002,-1059.201726,0.00021643,2]
[380145081,1755573066011,-6405.06,0.00021643,2]
[380145082,1755573066021,-458.534596,0.00021643,2]
[380145083,1755573066030,-455.408369,0.00021643,2]
[380145084,1755573066039,-152.81135,0.00021643,2]
[380145085,1755573066049,-167.012945,0.00021643,2]
[380145086,1755573066058,-860.52,0.00021643,2]
[380145087,1755573066067,-810.59,0.00021643,2]
[380145088,1755573066076,-728.69,0.00021643,2]
[380145089,1755573066085,-151.0,0.00021643,2]
[380145090,1755573066191,-690.18,0.00021643,2]
[380145091,1755573066202,-1039.74,0.00021643,2]
[380145092,1755573066219,-480.0,0.00021643,2]
[380145093,1755573066229,-2436.12,0.00021643,2]
[380145094,1755573066239,-151.0,0.00021643,2]
[380145095,1755573066248,-480.0,0.00021643,2]
[380145096,1755573066258,-941.31,0.00021643,2]
[380145097,1755573066268,-547.86,0.00021643,2]
[380145098,1755573066278,-653.19,0.00021643,2]
[380145099,1755573066290,-712.5,0.00021643,2]
[380145100,1755573066299,-2633.5,0.00021643,2]
[380145101,1755573066310,-3869.68,0.00021643,2]
[380145102,1755573066320,-480.0,0.00021643,2]
[380145103,1755573066329,-480.0,0.00021643,2]
[380145104,1755573066339,-491.22,0.00021643,2]
[380145105,1755573066349,-1131.68,0.00021643,2]
[380145106,1755573066358,-151.0,0.00021643,2]
[380145107,1755573066369,-411.86971084,0.00021644,2]
[380145195,1755574023524,159.266538,0.00013699,2]
[380145196,1755574027129,-596.15823277,0.00019078,2]
[380145198,1755574058333,307.97617576,0.00028,120]
[380145216,1755574232333,-510.9,0.00019078,2]
[380145219,1755574232345,-138.21584517,0.00019078,2]
[380145221,1755574232354,-160.0,0.00019115,3]
[380145223,1755574232363,-300.0,0.00019172,2]
[380145224,1755574232373,-58.75566232,0.00019172,2]
[380145225,1755574232385,-525.24433768,0.00019172,2]
[380145226,1755574232394,-210.46484385,0.00019173,2]
[380145227,1755574232404,-500.0,0.00019173,2]
[380145228,1755574232413,-500.0,0.00019173,2]
[380145229,1755574232422,-509.24419611,0.00019173,2]
[380145230,1755574232431,-500.0,0.00019173,2]
[380145231,1755574232440,-596.32567463,0.00019173,2]
[380145232,1755574232451,-243.56838146,0.00019173,2]
[380145233,1755574232461,-338.05662277,0.00019177,2]
[380145234,1755574232471,-320.51792801,0.00019177,2]
[380145235,1755574232481,-500.0,0.00019177,2]
[380145236,1755574232490,-500.0,0.00019177,2]
[380145237,1755574232501,-438.06374746,0.00019177,2]
[380145238,1755574232510,-480.0,0.00019178,2]
[380145239,1755574232519,-480.0,0.00019178,2]
[380145240,1755574232528,-480.0,0.00019178,2]
[380145241,1755574232537,-482.39231913,0.00019178,2]
[380145242,1755574232547,-430.14023818,0.00019178,2]
[380145243,1755574232557,-267.9517493,0.00019178,2]
[380145250,1755574238184,-212.0482507,0.00019178,2]
[380145251,1755574238193,-480.0,0.00019178,2]
[380145252,1755574238203,-480.0,0.00019178,2]
[380145253,1755574238213,-491.87049915,0.00019178,2]
[380145254,1755574238223,-484.45210608,0.00019178,2]
[380145255,1755574238232,-480.0,0.00019178,2]
[380145256,1755574238241,-480.67943297,0.00019178,2]
[380145257,1755574238253,-480.0,0.00019178,2]
[380145258,1755574238262,-54.93180773,0.00019178,2]
[380145259,1755574238274,-425.06819227,0.00019178,2]
[380145260,1755574238283,-103.01479262,0.00019178,2]
[380145261,1755574238300,-354.63562191,0.00019178,2]
[380145262,1755574238309,-480.0,0.00019178,2]
[380145263,1755574238319,-480.0,0.00019178,2]
[380145264,1755574238329,-480.0,0.00019178,2]
[380145265,1755574238338,-480.0,0.00019178,2]
[380145266,1755574238348,-440.91571003,0.00019178,2]
[380145267,1755574238358,-480.0,0.00019178,2]
[380145268,1755574238367,-480.0,0.00019178,2]
[380145269,1755574238377,-480.0,0.00019178,2]
[380145270,1755574238387,-480.0,0.00019178,2]
[380145271,1755574238398,-470.41920347,0.00019178,2]
[380145272,1755574238407,-278.67685562,0.00019178,2]
[380145273,1755574238417,-442.81588569,0.00019178,2]
[380145274,1755574238426,-480.0,0.00019178,2]
[380145275,1755574238436,-500.0,0.00019178,2]
[380145276,1755574238445,-481.62145837,0.00019178,2]
[380145277,1755574238455,-480.0,0.00019178,2]
[380145278,1755574238465,-485.25995711,0.00019178,2]
[380145279,1755574238475,-480.0,0.00019178,2]
[380145280,1755574238483,-480.0,0.00019178,2]
[380145281,1755574238493,-480.0,0.00019178,2]
[380145282,1755574238502,-480.0,0.00019178,2]
[380145283,1755574238511,-480.0,0.00019178,2]
[380145284,1755574238520,-480.0,0.00019178,2]
[380145285,1755574238528,-480.0,0.00019178,2]
[380145286,1755574238538,-480.0,0.00019178,2]
[380145287,1755574238547,-480.0,0.00019178,2]
[380145288,1755574238556,-461.96658977,0.00019178,2]
[380145289,1755574238565,-480.0,0.00019178,2]
[380145290,1755574238574,-480.0,0.00019178,2]
[380145291,1755574238583,-480.0,0.00019178,2]
[380145292,1755574238593,-480.0,0.00019178,2]
[380145293,1755574238603,-480.0,0.00019178,2]
[380145294,1755574238613,-481.09400266,0.00019178,2]
[380145295,1755574238622,-480.59350074,0.00019178,2]
[380145296,1755574238632,-480.0,0.00019178,2]
[380145297,1755574238641,-2426.49,0.00019178,2]
[380145298,1755574238651,-480.0,0.00019178,2]
[380145299,1755574238660,-480.0,0.00019178,2]
[380145300,1755574238669,-266.1040576,0.00019178,2]
[380145301,1755574238678,-480.0,0.00019178,2]
[380145302,1755574238687,-480.0,0.00019178,2]
[380145311,1755574238802,-480.0,0.00019178,2]
[380145312,1755574238812,-303.10018812,0.00019178,2]
[380145314,1755574238821,-480.0,0.00019178,2]
[380145315,1755574238831,-490.2159752,0.00019178,2]
[380145316,1755574238839,-480.0,0.00019178,2]
[380145317,1755574238848,-480.0,0.00019178,2]
[380145318,1755574238858,-480.0,0.00019178,2]
[380145319,1755574238868,-152.2769323,0.00019178,2]
[380145321,1755574238877,-480.0,0.00019178,2]
[380145323,1755574238887,-480.0,0.00019178,2]
[380145325,1755574238897,-573.68,0.00019178,2]
[380145327,1755574238906,-480.0,0.00019178,2]
[380145329,1755574238915,-483.80168912,0.00019178,2]
[380145331,1755574238924,-480.0,0.00019178,2]
[380145333,1755574238933,-489.90217116,0.00019178,2]
[380145334,1755574238943,-481.69301808,0.00019178,2]
[380145336,1755574238952,-460.0,0.00019178,2]
[380145338,1755574238962,-1755.67,0.00019178,2]
[380145340,1755574238972,-480.0,0.00019178,2]
[380145342,1755574238982,-3156.46,0.00019178,2]
[380145344,1755574238991,-480.0,0.00019178,2]
[380145346,1755574239000,-495.03014447,0.00019178,2]
[380145348,1755574239010,-480.0,0.00019178,2]
[380145350,1755574239019,-480.0,0.00019178,2]
[380145352,1755574239028,-480.0,0.00019178,2]
[380145354,1755574239037,-480.0,0.00019178,2]
[380145356,1755574239046,-455.07199981,0.00019178,2]
[380145358,1755574239056,-480.0,0.00019178,2]
[380145360,1755574239065,-480.0,0.00019178,2]
[380145362,1755574239074,-480.0,0.00019178,2]
[380145364,1755574239083,-480.0,0.00019178,2]
[380145366,1755574239093,-602.65,0.00019178,2]
[380145368,1755574239102,-480.0,0.00019178,2]
[380145370,1755574239111,-485.27235838,0.00019178,2]
[380145371,1755574239120,-460.0,0.00019178,2]
[380145373,1755574239129,-480.0,0.00019178,2]
[380145375,1755574239138,-480.0,0.00019178,2]
[380145377,1755574239147,-480.0,0.00019178,2]
[380145379,1755574239156,-480.0,0.00019178,2]
[380145381,1755574239165,-480.0,0.00019178,2]
[380145383,1755574239174,-464.4641217,0.00019178,2]
[380145385,1755574239183,-480.0,0.00019178,2]
[380145387,1755574239193,-635.93,0.00019178,2]
[380145389,1755574239202,-480.0,0.00019178,2]
[380145391,1755574239211,-280.0,0.00019178,2]
[380145393,1755574239222,-990.28,0.00019178,2]
[380145395,1755574239231,-480.0,0.00019178,2]
[380145397,1755574239240,-480.0,0.00019178,2]
[380145399,1755574239249,-480.0,0.00019178,2]
[380145401,1755574239258,-480.0,0.00019178,2]
[380145403,1755574239267,-480.0,0.00019178,2]
[380145405,1755574239276,-480.0,0.00019178,2]
[380145406,1755574239285,-480.0,0.00019178,2]
[380145408,1755574239294,-371.01898841,0.00019178,2]
[380145410,1755574239303,-416.64547545,0.00019178,2]
[380145412,1755574239313,-480.0,0.00019178,2]
[380145414,1755574239322,-480.0,0.00019178,2]
[380145416,1755574239331,-480.0,0.00019178,2]
[380145418,1755574239340,-480.0,0.00019178,2]
[380145420,1755574239349,-480.0,0.00019178,2]
[380145422,1755574239359,-480.0,0.00019178,2]
[380145424,1755574239368,-480.0,0.00019178,2]
[380145426,1755574239377,-544.97117785,0.00019178,2]
[380145428,1755574239386,-776.16,0.00019178,2]
[380145430,1755574239395,-552.76471533,0.00019178,2]
[380145432,1755574239404,-482.59500402,0.00019178,2]
[380145434,1755574239412,-480.0,0.00019178,2]
[380145436,1755574239421,-481.77417983,0.00019178,2]
[380145438,1755574239430,-480.0,0.00019178,2]
[380145440,1755574239439,-520.50981884,0.00019178,2]